bitfinex-derivatives/quotes_BNBF0:USTF0_20251203
["timestamp","ask_amount","ask_price","bid_price","bid_amount"]
[1764769583425,0.63643862,903.64,903.25,1.154]
[1764769583619,0.63643862,903.63,903.25,1.154]
[1764769583822,0.63643862,903.62,903.25,1.154]
[1764769584025,0.63643862,903.61,903.25,1.154]
[1764769584224,0.63643862,903.6,903.25,1.154]
[1764769584421,0.63643862,903.59,903.25,1.154]
[1764769584620,0.63643862,903.58,903.25,1.154]
[1764769584821,0.63643862,903.57,903.25,1.154]
[1764769585026,0.63643862,903.56,903.25,1.154]
[1764769585229,0.63643862,903.55,903.25,1.154]
[1764769585526,0.63643862,903.54,903.25,1.154]
[1764769585725,0.63643862,903.53,903.25,1.154]
[1764769585921,0.63643862,903.52,903.25,1.154]
[1764769586120,0.63643862,903.51,903.25,1.154]
[1764769586321,0.63643862,903.5,903.25,1.154]
[1764769586521,0.82552465,903.71,903.25,1.154]
[1764769586522,0.63643862,903.49,903.25,1.154]
[1764769586726,0.63643862,903.48,903.25,1.154]
[1764769586922,0.63643862,903.47,903.25,1.154]
[1764769587125,0.63643862,903.46,903.25,1.154]
[1764769587325,0.63643862,903.45,903.25,1.154]
[1764769587523,0.63643862,903.44,903.25,1.154]
[1764769587726,0.63643862,903.43,903.25,1.154]
[1764769587928,0.63643862,903.42,903.25,1.154]
[1764769588129,0.82552465,903.71,903.25,1.154]
[1764769588330,0.6360139,903.7,903.25,1.154]
[1764769588530,0.6360139,903.69,903.25,1.154]
[1764769588831,0.6360139,903.68,903.25,1.154]
[1764769589030,0.6360139,903.67,903.25,1.154]
[1764769589330,0.6360139,903.66,903.25,1.154]
[1764769589525,0.6360139,903.65,903.25,1.154]
[1764769589730,0.6360139,903.64,903.25,1.154]
[1764769590031,0.6360139,903.63,903.25,1.154]
[1764769590227,0.6360139,903.62,903.25,1.154]
[1764769590426,0.6360139,903.61,903.25,1.154]
[1764769590627,0.6360139,903.6,903.25,1.154]
[1764769590831,0.6360139,903.59,903.25,1.154]
[1764769591030,0.6360139,903.58,903.25,1.154]
[1764769591326,0.6360139,903.57,903.25,1.154]
[1764769591526,0.6360139,903.56,903.25,1.154]
[1764769591726,0.6360139,903.55,903.25,1.154]
[1764769591927,0.6360139,903.54,903.25,1.154]
[1764769592129,0.6360139,903.53,903.25,1.154]
[1764769592328,0.6360139,903.52,903.25,1.154]
[1764769592528,0.6360139,903.51,903.25,1.154]
[1764769592733,0.6360139,903.5,903.25,1.154]
[1764769593030,0.6360139,903.49,903.25,1.154]
[1764769593228,0.6360139,903.48,903.25,1.154]
[1764769593534,0.6360139,903.47,903.25,1.154]
[1764769593734,0.82552465,903.76,903.25,1.154]
[1764769595433,0.63552924,903.75,903.25,1.154]
[1764769595633,0.63552924,903.74,903.25,1.154]
[1764769595830,0.63552924,903.73,903.25,1.154]
[1764769596133,0.63552924,903.72,903.25,1.154]
[1764769596330,0.63552924,903.71,903.25,1.154]
[1764769596529,0.63552924,903.7,903.25,1.154]
[1764769596730,0.63552924,903.69,903.25,1.154]
[1764769596930,0.63552924,903.68,903.25,1.154]
[1764769597131,0.63552924,903.67,903.25,1.154]
[1764769597433,0.63552924,903.66,903.25,1.154]
[1764769597633,0.63552924,903.65,903.25,1.154]
[1764769597833,0.63552924,903.64,903.25,1.154]
[1764769598029,0.63552924,903.63,903.25,1.154]
[1764769598231,0.63552924,903.62,903.25,1.154]
[1764769598456,0.82552465,903.93,903.25,1.154]
[1764769600436,1.46084904,903.92,903.25,1.154]
[1764769600636,0.63532439,903.91,903.25,1.154]
[1764769600837,0.63532439,903.9,903.25,1.154]
[1764769601037,0.63532439,903.89,903.25,1.154]
[1764769601334,0.63532439,903.88,903.25,1.154]
[1764769601536,0.63532439,903.87,903.25,1.154]
[1764769601736,0.63532439,903.86,903.25,1.154]
[1764769601938,0.63532439,903.85,903.25,1.154]
[1764769602237,0.63532439,903.84,903.25,1.154]
[1764769602537,0.63532439,903.83,903.25,1.154]
[1764769602738,0.63532439,903.82,903.25,1.154]
[1764769602939,0.63532439,903.81,903.25,1.154]
[1764769603240,0.63532439,903.8,903.25,1.154]
[1764769603441,0.63532439,903.79,903.25,1.154]
[1764769603639,0.63532439,903.78,903.25,1.154]
[1764769603839,0.63532439,903.77,903.25,1.154]
[1764769604042,0.63532439,903.76,903.25,1.154]
[1764769604338,0.63532439,903.75,903.25,1.154]
[1764769604543,0.63532439,903.74,903.25,1.154]
[1764769604742,0.63532439,903.73,903.25,1.154]
[1764769604941,0.82552465,903.9,903.25,1.154]
[1764769604942,0.63532439,903.72,903.25,1.154]
[1764769605141,0.63532439,903.71,903.25,1.154]
[1764769605444,0.63532439,903.7,903.25,1.154]
[1764769605745,0.63532439,903.69,903.25,1.154]
[1764769605945,0.63532439,903.68,903.25,1.154]
[1764769606145,0.82552465,903.9,903.25,1.154]
[1764769606146,0.63532439,903.67,903.25,1.154]
[1764769606341,0.63532439,903.66,903.25,1.154]
[1764769606540,0.63532439,903.65,903.25,1.154]
[1764769606746,0.63532439,903.64,903.25,1.154]
[1764769606946,0.63532439,903.63,903.25,1.154]
[1764769607242,0.63532439,903.62,903.25,1.154]
[1764769607546,0.63532439,903.61,903.25,1.154]
[1764769607846,0.82552465,903.9,903.25,1.154]
[1764769608047,1.46163805,903.89,903.25,1.154]
[1764769608345,0.6361134,903.88,903.25,1.154]
[1764769608546,0.6361134,903.87,903.25,1.154]
[1764769608746,0.6361134,903.86,903.25,1.154]
[1764769608947,0.6361134,903.85,903.25,1.154]
[1764769609245,0.6361134,903.84,903.25,1.154]
[1764769609446,0.6361134,903.83,903.25,1.154]
[1764769609742,0.6361134,903.82,903.26,1.137]
[1764769609946,0.6361134,903.81,903.26,1.137]
[1764769610145,0.6361134,903.8,903.26,1.137]
[1764769610342,0.6361134,903.79,903.26,1.137]
[1764769610542,0.6361134,903.78,903.26,1.137]
[1764769610842,0.6361134,903.77,903.26,1.137]
[1764769611042,0.6361134,903.76,903.26,1.137]
[1764769611245,0.6361134,903.75,903.26,1.137]
[1764769611546,0.6361134,903.74,903.26,1.137]
[1764769611746,0.6361134,903.73,903.26,1.137]
[1764769611941,0.6361134,903.72,903.26,1.137]
[1764769612147,0.6361134,903.71,903.26,1.137]
[1764769612344,0.6361134,903.7,903.26,1.137]
[1764769612543,0.6361134,903.69,903.26,1.137]
[1764769612748,0.6361134,903.68,903.26,1.137]
[1764769613043,0.6361134,903.67,903.26,1.137]
[1764769613244,0.6361134,903.66,903.26,1.137]
[1764769613449,0.6361134,903.65,903.26,1.137]
[1764769613748,0.6361134,903.64,903.26,1.137]
[1764769613944,0.6361134,903.63,903.26,1.137]
[1764769614149,0.6361134,903.62,903.26,1.137]
[1764769614347,0.6361134,903.61,903.26,1.137]
[1764769614549,0.6361134,903.6,903.26,1.137]
[1764769614750,0.82552465,903.89,903.26,1.137]
[1764769614953,0.6362615,903.88,903.26,1.137]
[1764769615250,0.6362615,903.87,903.26,1.137]
[1764769615450,0.6362615,903.86,903.26,1.137]
[1764769615646,0.6362615,903.85,903.26,1.137]
[1764769615849,0.6362615,903.84,903.26,1.137]
[1764769616149,0.6362615,903.83,903.26,1.137]
[1764769616346,0.6362615,903.82,903.26,1.137]
[1764769616549,0.6362615,903.81,903.26,1.137]
[1764769616748,0.6362615,903.8,903.26,1.137]
[1764769616951,0.6362615,903.79,903.26,1.137]
[1764769617253,0.6362615,903.78,903.26,1.137]
[1764769617451,0.6362615,903.77,903.26,1.137]
[1764769617653,0.6362615,903.76,903.26,1.137]
[1764769617851,0.6362615,903.75,903.26,1.137]
[1764769618148,0.6362615,903.74,903.26,1.137]
[1764769618351,0.6362615,903.73,903.26,1.137]
[1764769618549,0.6362615,903.72,903.26,1.137]
[1764769618849,0.6362615,903.71,903.26,1.137]
[1764769619152,0.6362615,903.7,903.26,1.137]
[1764769619353,0.6362615,903.69,903.26,1.137]
[1764769619651,1.09052115,903.94,903.26,1.137]
[1764769619652,0.6362615,903.68,903.26,1.137]
[1764769619851,0.6362615,903.67,903.26,1.137]
[1764769620053,0.6362615,903.66,903.26,1.137]
[1764769620251,0.6362615,903.65,903.26,1.137]
[1764769620554,0.6362615,903.64,903.26,1.137]
[1764769620856,0.6362615,903.63,903.27,1.084]
[1764769621157,0.6362615,903.62,903.27,1.084]
[1764769621449,0.6362615,903.61,903.27,1.084]
[1764769621653,0.6362615,903.6,903.27,1.084]
[1764769621851,0.6362615,903.59,903.27,1.084]
[1764769622055,0.6362615,903.58,903.27,1.084]
[1764769622255,0.6362615,903.57,903.27,1.084]
[1764769622550,0.6362615,903.56,903.27,1.084]
[1764769622755,0.6362615,903.55,903.27,1.084]
[1764769622955,0.6362615,903.54,903.27,1.084]
[1764769623256,0.6362615,903.53,903.27,1.084]
[1764769623555,0.6362615,903.52,903.27,1.084]
[1764769623752,0.6362615,903.51,903.27,1.084]
[1764769623956,0.6362615,903.5,903.27,1.084]
[1764769624254,0.6362615,903.49,903.27,1.084]
[1764769624453,0.6362615,903.48,903.27,1.084]
[1764769624657,0.82552465,903.77,903.27,1.084]
[1764769624957,0.63674582,903.76,903.27,1.084]
[1764769625158,0.63674582,903.75,903.27,1.084]
[1764769625457,0.63674582,903.74,903.27,1.084]
[1764769625653,0.63674582,903.73,903.27,1.084]
[1764769625858,0.82552465,903.77,903.27,1.084]
[1764769625859,0.63674582,903.72,903.27,1.084]
[1764769626058,0.63674582,903.71,903.27,1.084]
[1764769626258,0.63674582,903.7,903.27,1.084]
[1764769626459,0.63674582,903.69,903.27,1.084]
[1764769626659,0.63674582,903.68,903.27,1.084]
[1764769626857,0.63674582,903.67,903.27,1.084]
[1764769627157,0.63674582,903.66,903.27,1.084]
[1764769627456,0.63674582,903.65,903.27,1.084]
[1764769627659,0.63674582,903.64,903.27,1.084]
[1764769627857,0.63674582,903.63,903.27,1.084]
[1764769628059,0.6367485,903.62,903.27,1.084]
[1764769628260,0.6367485,903.61,903.27,1.084]
[1764769628459,0.6367485,903.6,903.27,1.084]
[1764769628659,0.6367485,903.59,903.27,1.084]
[1764769628856,0.6367485,903.58,903.27,1.084]
[1764769629061,0.6367485,903.57,903.27,1.084]
[1764769629261,0.6367485,903.56,903.27,1.084]
[1764769629557,0.6367485,903.55,903.27,1.084]
[1764769629756,0.6367485,903.54,903.27,1.084]
[1764769629957,0.6367485,903.53,903.27,1.084]
[1764769630160,0.82740827,903.82,903.27,1.084]
[1764769630364,1.46342913,903.81,903.27,1.084]
[1764769630560,0.63602086,903.8,903.27,1.084]
[1764769630861,0.63602086,903.79,903.27,1.084]
[1764769631164,0.63602086,903.78,903.27,1.084]
[1764769631362,0.63602086,903.77,903.27,1.084]
[1764769631563,0.63602086,903.76,903.27,1.084]
[1764769631763,0.63602086,903.75,903.27,1.084]
[1764769632064,0.63602086,903.74,903.27,1.084]
[1764769632363,0.82740827,903.8,903.27,1.084]
[1764769632364,0.63602086,903.73,903.27,1.084]
[1764769632564,0.63602086,903.72,903.27,1.084]
[1764769632765,0.63602086,903.71,903.27,1.084]
[1764769633060,0.63602086,903.7,903.27,1.084]
[1764769633262,0.63602086,903.69,903.27,1.084]
[1764769633461,0.63602086,903.68,903.27,1.084]
[1764769633661,0.63602086,903.67,903.27,1.084]
[1764769633864,0.63602086,903.66,903.27,1.084]
[1764769634066,0.63602086,903.65,903.27,1.084]
[1764769634262,0.63602086,903.64,903.27,1.084]
[1764769634460,0.63602086,903.63,903.27,1.084]
[1764769634665,0.63602086,903.62,903.27,1.084]
[1764769634960,0.63602086,903.61,903.27,1.084]
[1764769635162,0.63602086,903.6,903.27,1.084]
[1764769635361,0.63602086,903.59,903.27,1.084]
[1764769635563,0.63602086,903.58,903.27,1.084]
[1764769635766,0.63602086,903.57,903.27,1.084]
[1764769635963,0.63602086,903.56,903.27,1.084]
[1764769636166,0.63602086,903.55,903.27,1.084]
[1764769636366,0.63602086,903.54,903.27,1.084]
[1764769636568,0.63602086,903.53,903.27,1.084]
[1764769636770,0.63602086,903.52,903.27,1.084]
[1764769636968,0.63602086,903.51,903.27,1.084]
[1764769637269,0.63602086,903.5,903.27,1.084]
[1764769637569,0.63602086,903.49,903.27,1.084]
[1764769637769,0.63602086,903.48,903.27,1.084]
[1764769638069,0.63602086,903.47,903.27,1.084]
[1764769638265,0.63602086,903.46,903.27,1.084]
[1764769638466,0.63602086,903.45,903.27,1.084]
[1764769638664,0.63602086,903.44,903.27,1.084]
[1764769638866,0.63602086,903.43,903.27,1.084]
[1764769639067,0.82740827,903.72,903.27,1.084]
[1764769639266,0.63658174,903.71,903.27,1.084]
[1764769639468,0.63658174,903.7,903.27,1.084]
[1764769639669,0.63658174,903.69,903.27,1.084]
[1764769639869,0.63658174,903.68,903.27,1.084]
[1764769640069,0.63658174,903.67,903.27,1.084]
[1764769640268,0.63658174,903.66,903.27,1.084]
[1764769640468,0.63658174,903.65,903.27,1.084]
[1764769640670,0.63658174,903.64,903.27,1.084]
[1764769640871,0.63658174,903.63,903.27,1.084]
[1764769641169,0.63658174,903.62,903.27,1.084]
[1764769641369,0.63658174,903.61,903.27,1.084]
[1764769641571,0.82740827,903.55,903.27,1.084]
[1764769641772,0.82740827,903.53,903.27,1.084]
[1764769641972,0.63658174,903.52,903.27,1.084]
[1764769642171,0.63658174,903.51,903.27,1.084]
[1764769642373,1.46399001,903.5,903.27,1.084]
[1764769642572,0.63658174,903.49,903.27,1.084]
[1764769642773,0.63658174,903.48,903.27,1.084]
[1764769642972,0.63658174,903.47,903.27,1.084]
[1764769643268,0.63658174,903.46,903.27,1.084]
[1764769643471,0.63658174,903.45,903.27,1.084]
[1764769643673,0.63658174,903.44,903.27,1.084]
[1764769643869,0.63658174,903.43,903.27,1.084]
[1764769644070,0.63658174,903.42,903.27,1.084]
[1764769644274,0.63658174,903.41,903.27,1.084]
[1764769644569,0.63658174,903.4,903.27,1.084]
[1764769644773,0.63658174,903.39,903.27,1.084]
[1764769644972,0.63658174,903.38,903.27,1.084]
[1764769645175,0.63658174,903.37,903.27,1.084]
[1764769645375,0.63658174,903.36,903.27,1.084]
[1764769645571,0.63658174,903.35,903.27,1.084]
[1764769645775,0.63658174,903.34,903.27,1.084]
[1764769645970,0.63658174,903.33,903.27,1.084]
[1764769646175,0.63658174,903.32,903.27,1.084]
[1764769646475,0.63658174,903.31,903.27,1.084]
[1764769646776,0.63658174,903.3,903.27,1.084]
[1764769647072,0.63658174,903.29,903.27,1.084]
[1764769647376,0.63658174,903.28,903.27,1.084]
[1764769647775,0.63658174,903.5,903.27,1.084]
[1764769647971,0.63658174,903.49,903.27,1.084]
[1764769648275,0.63658174,903.48,903.27,1.084]
[1764769648473,0.63658174,903.47,903.27,1.084]
[1764769648777,0.63658174,903.46,903.27,1.084]
[1764769649076,0.63658174,903.45,903.27,1.084]
[1764769649277,0.63658174,903.44,903.27,1.084]
[1764769649473,0.63658174,903.43,903.27,1.084]
[1764769649774,0.63658174,903.42,903.27,1.084]
[1764769649977,0.63658174,903.41,903.27,1.084]
[1764769650176,0.63658174,903.4,903.27,1.084]
[1764769650375,0.63658174,903.39,903.27,1.084]
[1764769650577,0.63658174,903.38,903.27,1.084]
[1764769650774,0.63658174,903.37,903.27,1.084]
[1764769650975,0.63658174,903.36,903.27,1.084]
[1764769651177,0.63658174,903.35,903.27,1.084]
[1764769651374,0.63658174,903.34,903.27,1.084]
[1764769651575,0.63658174,903.33,903.27,1.084]
[1764769651776,0.63658174,903.32,903.27,1.084]
[1764769651976,0.63658174,903.31,903.27,1.084]
[1764769652175,0.63658174,903.3,903.27,1.084]
[1764769652381,0.63658174,903.29,903.27,1.084]
[1764769652576,0.63658174,903.28,903.27,1.084]
[1764769653680,0.63658174,903.55,903.27,1.084]
[1764769653881,0.63658174,903.54,903.27,1.084]
[1764769654081,0.63658174,903.53,903.27,1.084]
[1764769654280,0.63658174,903.52,903.27,1.084]
[1764769654478,0.63658174,903.51,903.27,1.084]
[1764769654776,0.63658174,903.5,903.27,1.084]
[1764769654978,0.63658174,903.49,903.26,1.137]
[1764769655180,0.63658174,903.48,903.26,1.137]
[1764769655483,0.63658174,903.47,903.26,1.137]
[1764769655679,0.63658174,903.46,903.26,1.137]
[1764769655878,1.46399001,903.45,903.26,1.137]
[1764769656184,0.63658174,903.44,903.26,1.137]
[1764769656385,1.46399001,903.43,903.26,1.137]
[1764769656682,0.63658174,903.42,903.26,1.137]
[1764769656883,0.63658174,903.41,903.26,1.137]
[1764769657084,0.63658174,903.4,903.26,1.137]
[1764769657380,0.63658174,903.39,903.26,1.137]
[1764769657586,0.63658174,903.38,903.26,1.137]
[1764769657884,0.63658174,903.37,903.26,1.137]
[1764769658084,0.63658174,903.36,903.26,1.137]
[1764769658279,0.63658174,903.35,903.26,1.137]
[1764769658481,0.63658174,903.34,903.26,1.137]
[1764769658781,0.63658174,903.33,903.26,1.137]
[1764769659080,0.63658174,903.32,903.26,1.137]
[1764769659284,0.63658174,903.31,903.26,1.137]
[1764769659487,0.63658174,903.3,903.26,1.137]
[1764769659685,0.63658174,903.29,903.26,1.137]
[1764769659882,0.63658174,903.28,903.26,1.137]
[1764769660081,0.63658174,903.27,903.26,1.137]
[1764769661882,0.82740827,903.47,903.26,1.137]
[1764769662082,0.63658174,903.46,903.26,1.137]
[1764769662386,0.63658174,903.45,903.26,1.137]
[1764769662586,0.63658174,903.44,903.26,1.137]
[1764769662887,0.63658174,903.43,903.26,1.137]
[1764769663086,0.63658174,903.42,903.26,1.137]
[1764769663288,0.63658174,903.41,903.26,1.137]
[1764769663485,0.63658174,903.4,903.26,1.137]
[1764769663686,0.63658174,903.39,903.26,1.137]
[1764769663981,0.63658174,903.38,903.26,1.137]
[1764769664187,0.63658174,903.37,903.26,1.137]
[1764769664385,0.63658174,903.36,903.26,1.137]
[1764769664588,0.63658174,903.35,903.26,1.137]
[1764769664884,0.63658174,903.34,903.26,1.137]
[1764769665088,0.63658174,903.33,903.26,1.137]
[1764769665284,0.63658174,903.32,903.26,1.137]
[1764769665585,0.63658174,903.31,903.21,1.137]
[1764769665788,0.63658174,903.3,903.21,1.137]
[1764769665989,0.63658174,903.29,903.21,1.137]
[1764769666288,0.63658174,903.28,903.21,1.137]
[1764769666485,0.63658174,903.27,903.21,1.137]
[1764769666689,0.63658174,903.26,903.21,1.137]
[1764769666989,0.63658174,903.25,903.21,1.137]
[1764769667191,0.63658174,903.24,903.21,1.137]
[1764769667388,0.63658174,903.23,903.21,1.137]
[1764769667586,0.63658174,903.22,903.21,1.137]
[1764769668185,0.82740827,903.46,903.21,1.137]
[1764769668389,0.63658174,903.45,903.21,1.137]
[1764769668590,0.63658174,903.44,903.21,1.137]
[1764769668796,0.63658174,903.43,903.21,1.137]
[1764769669092,0.63658174,903.42,903.21,1.137]
[1764769669296,0.82740827,903.46,903.22,1.429]
[1764769669297,0.63658174,903.41,903.22,1.429]
[1764769669495,0.63658174,903.4,903.22,1.429]
[1764769669696,0.63658174,903.39,903.22,1.429]
[1764769669897,0.63658174,903.38,903.22,1.429]
[1764769670096,0.63658174,903.37,903.22,1.429]
[1764769670298,0.63658174,903.36,903.22,1.429]
[1764769670597,0.63658174,903.35,903.22,1.429]
[1764769670797,0.63658174,903.34,903.22,1.429]
[1764769670994,0.63658174,903.33,903.22,1.429]
[1764769671198,0.63658174,903.32,903.22,1.429]
[1764769671398,0.82740827,903.46,903.22,1.429]
[1764769671399,0.63658174,903.31,903.22,1.429]
[1764769671598,0.63658174,903.3,903.22,1.429]
[1764769671798,0.63658174,903.29,903.22,1.429]
[1764769671998,0.63658174,903.28,903.22,1.429]
[1764769672199,0.63658174,903.27,903.22,1.429]
[1764769672396,0.63658174,903.26,903.22,1.429]
[1764769672599,0.82740827,903.47,903.22,1.429]
[1764769672600,0.63658174,903.25,903.22,1.429]
[1764769672900,0.63658174,903.24,903.22,1.429]
[1764769673099,0.63658174,903.23,903.22,1.429]
[1764769674201,0.82740827,903.49,903.22,1.429]
[1764769674402,0.63658174,903.48,903.22,1.429]
[1764769674602,0.82740827,903.48,903.22,1.429]
[1764769674902,0.63658174,903.47,903.22,1.429]
[1764769675100,0.63658174,903.46,903.22,1.429]
[1764769675401,0.63658174,903.45,903.22,1.429]
[1764769675596,0.63658174,903.44,903.22,1.429]
[1764769675797,0.63658174,903.43,903.22,1.429]
[1764769675998,0.63658174,903.42,903.22,1.429]
[1764769676196,0.63658174,903.41,903.22,1.429]
[1764769676396,0.63658174,903.4,903.22,1.429]
[1764769676601,0.63658174,903.39,903.22,1.429]
[1764769676797,0.63658174,903.38,903.22,1.429]
[1764769676998,0.63658174,903.37,903.22,1.429]
[1764769677298,0.63658174,903.36,903.22,1.429]
[1764769677602,0.63658174,903.35,903.22,1.429]
[1764769677902,0.63658174,903.34,903.22,1.429]
[1764769678100,0.82740827,903.46,903.22,1.429]
[1764769678101,0.63658174,903.33,903.22,1.429]
[1764769678297,0.63658174,903.32,903.22,1.429]
[1764769678500,0.63658174,903.31,903.22,1.429]
[1764769678698,0.63658174,903.3,903.22,1.429]
[1764769678897,0.63658174,903.29,903.22,1.429]
[1764769679098,0.63658174,903.28,903.22,1.429]
[1764769679398,0.63658174,903.27,903.22,1.429]
[1764769679602,0.63658174,903.26,903.22,1.429]
[1764769679800,0.63658174,903.25,903.22,1.429]
[1764769679999,0.63658174,903.24,903.22,1.429]
[1764769680201,0.63658174,903.23,903.22,1.429]
[1764769680702,0.82740827,903.46,903.22,1.429]
[1764769680901,0.63658174,903.45,903.22,1.429]
[1764769681103,0.63658174,903.44,903.22,1.429]
[1764769681305,0.63658174,903.43,903.22,1.429]
[1764769681503,0.63658174,903.42,903.22,1.429]
[1764769681704,0.63658174,903.41,903.22,1.429]
[1764769681900,0.63658174,903.4,903.22,1.429]
[1764769682205,0.63658174,903.39,903.22,1.429]
[1764769682499,0.63658174,903.38,903.22,1.429]
[1764769682705,0.63658174,903.37,903.22,1.429]
[1764769683000,0.63658174,903.36,903.22,1.429]
[1764769683204,0.63658174,903.35,903.22,1.429]
[1764769683404,0.63658174,903.34,903.22,1.429]
[1764769683605,0.63658174,903.33,903.22,1.429]
[1764769683802,0.63658174,903.32,903.22,1.429]
[1764769684005,0.63658174,903.31,903.22,1.429]
[1764769684203,0.63658174,903.3,903.22,1.429]
[1764769684405,0.63658174,903.29,903.22,1.429]
[1764769684606,1.09052115,903.66,903.22,1.429]
[1764769684607,0.63658174,903.28,903.22,1.429]
[1764769684806,0.63658174,903.27,903.22,1.429]
[1764769685006,0.63658174,903.26,903.22,1.429]
[1764769685308,0.64302134,903.25,903.22,1.429]
[1764769685508,0.82740827,903.54,903.22,1.429]
[1764769685710,0.64302931,903.53,903.22,1.429]
[1764769685905,0.64302931,903.52,903.22,1.429]
[1764769686108,0.64302931,903.51,903.22,1.429]
[1764769686303,0.64302931,903.5,903.22,1.429]
[1764769686607,0.64302931,903.49,903.22,1.429]
[1764769686804,0.64302931,903.48,903.22,1.429]
[1764769687007,0.64302931,903.47,903.22,1.429]
[1764769687204,0.64302931,903.46,903.22,1.429]
[1764769687403,0.64302931,903.45,903.22,1.429]
[1764769687609,0.64302931,903.44,903.22,1.429]
[1764769687807,0.64302931,903.43,903.22,1.429]
[1764769688009,0.64302931,903.42,903.22,1.429]
[1764769688204,0.82740827,903.59,903.22,1.429]
[1764769688205,0.64302931,903.41,903.22,1.429]
[1764769688510,0.64302931,903.4,903.22,1.429]
[1764769688709,0.64302931,903.39,903.22,1.429]
[1764769689006,0.64302931,903.38,903.22,1.429]
[1764769689310,0.82740827,903.58,903.22,1.429]
[1764769689311,0.64302931,903.37,903.22,1.429]
[1764769689507,0.64302931,903.36,903.22,1.429]
[1764769689710,0.64302931,903.35,903.22,1.429]
[1764769690010,0.64302931,903.34,903.22,1.429]
[1764769690210,0.64302931,903.33,903.22,1.429]
[1764769690405,0.64302931,903.32,903.22,1.429]
[1764769690711,0.64302931,903.31,903.22,1.429]
[1764769690906,0.64302931,903.3,903.22,1.429]
[1764769691107,0.64302931,903.29,903.22,1.429]
[1764769691312,0.64302931,903.28,903.22,1.429]
[1764769691606,0.64302931,903.27,903.22,1.429]
[1764769691811,0.82740827,903.56,903.22,1.429]
[1764769692005,0.64278416,903.55,903.22,1.429]
[1764769692209,0.64278416,903.54,903.22,1.429]
[1764769692407,0.64278416,903.53,903.22,1.429]
[1764769692610,0.64278416,903.52,903.22,1.429]
[1764769692809,0.64278416,903.51,903.22,1.429]
[1764769693006,0.64278416,903.5,903.22,1.429]
[1764769693211,0.64278416,903.49,903.22,1.429]
[1764769693412,0.64278416,903.48,903.22,1.429]
[1764769693612,0.64278416,903.47,903.22,1.429]
[1764769693813,0.64278416,903.46,903.22,1.429]
[1764769694111,0.64278416,903.45,903.22,1.429]
[1764769694312,0.64278416,903.44,903.22,1.429]
[1764769694511,0.64278416,903.43,903.22,1.429]
[1764769694709,0.64278416,903.42,903.22,1.429]
[1764769694909,0.64278416,903.41,903.22,1.429]
[1764769695115,0.64278416,903.4,903.22,1.429]
[1764769695310,0.64278416,903.39,903.22,1.429]
[1764769695514,0.64278416,903.38,903.22,1.429]
[1764769695714,0.64278416,903.37,903.22,1.429]
[1764769695913,0.64278416,903.36,903.22,1.429]
[1764769696114,0.64278416,903.35,903.22,1.429]
[1764769696410,0.64278416,903.34,903.22,1.429]
[1764769696610,0.64278416,903.33,903.22,1.429]
[1764769696914,0.64278416,903.32,903.22,1.429]
[1764769697114,0.64278416,903.31,903.22,1.429]
[1764769697311,0.64278416,903.3,903.22,1.429]
[1764769697514,0.64278416,903.29,903.22,1.429]
[1764769697815,0.64278416,903.28,903.22,1.429]
[1764769698015,0.64278416,903.27,903.22,1.429]
[1764769698214,0.64278416,903.26,903.22,1.429]
[1764769698414,0.19258919,903.89,903.22,1.429]
[1764769698415,0.64278416,903.25,903.22,1.429]
[1764769698610,0.82740827,903.49,903.22,1.429]